[Event "Faroes Open 2018"]
[Site "Sandavagur"]
[Date "2018.07.09"]
[Round "4"]
[White "Nielsen, Jón í Horni"]
[Black "Spiesberger, Gerhard"]
[Result "1/2-1/2"]
[ECO "B01"]
[WhiteElo "1735"]
[BlackElo "2043"]
[Annotator "NA"]
[PlyCount "100"]
[EventDate "2018.07.07"]
[EventType "swiss"]
[EventCountry "FAI"]
[SourceTitle "playchess.com"]
[Source "ChessBase"]
[SourceQuality "1"]
[TimeControl "40/5400+30:900+30"]

1. e4 d5 2. exd5 Qxd5 3. Nc3 Qd8 4. d4 Nf6 5. Nf3 Bg4 6. Be2 e6 7. O-O {[%emt 0:12:23]} Bd6 {[%emt 0:08:39]} 8. Re1 {[%emt 0:00:13]} O-O {[%emt 0:00:46]} 9. Bg5 {[%emt 0:03:51]} Nbd7 {[%emt 0:02:59]} 10. Ne4 {[%emt 0:01:37]} Be7 {[%emt 0:01:36]} 11. Ng3 {[%emt 0:01:20]} Nh5 {[%emt 0:08:45]} 12. Bxe7 {[%emt 0:01:31]} Qxe7 {[%emt 0:00:20]} 13. Nxh5 {[%emt 0:00:23]} Bxh5 {[%emt 0:01:11]} 14. c4 {[%emt 0:09:49]} c6 {[%emt 0:03:29]} 15. Nd2 {[%emt 0:04:05]} Bxe2 {[%emt 0:01:17]} 16. Qxe2 {[%emt 0:00:03]} Nf6 {[%emt 0:00:22]} 17. Ne4 {[%emt 0:00:50]} Rad8 {[%emt 0:07:06]} 18. Rad1 {[%emt 0:00:17]} Rd7 {[%emt 0:06:01]} 19. Rd3 {[%emt 0:04:00]} Rfd8 {[%emt 0:03:24]} 20. Red1 {[%emt 0:00:33]} Nxe4 {[%emt 0:01:43]} 21. Qxe4 {[%emt 0:00:10]} Qf6 {[%emt 0:00:27]} 22. c5 {[%emt 0:02:13]} Rd5 {[%emt 0:03:12]} 23. f3 {[%emt 0:02:27]} R8d7 {[%emt 0:06:52]} 24. a3 {[%emt 0:01:52]} Qd8 {[%emt 0:01:31]} 25. f4 {[%emt 0:03:41]} Qf6 {[%emt 0:00:49]} 26. b4 {[%emt 0:01:09]} Qf5 {[%emt 0:01:23]} 27. Qxf5 {[%emt 0:01:16]} Rxf5 {[%emt 0:00:08]} 28. g3 {[%emt 0:00:27]} g5 {[%emt 0:01:37]} 29. fxg5 {[%emt 0:01:00]} Rxg5 {[%emt 0:01:17]} 30. Kf2 {[%emt 0:00:54]} Rgd5 {[%emt 0:00:25]} 31. Ke3 {[%emt 0:01:46]} f6 {[%emt 0:02:36]} 32. h4 {[%emt 0:03:19]} h5 {[%emt 0:05:40]} 33. Ke4 {[%emt 0:02:56]} Kf7 {[%emt 0:02:27]} 34. a4 {[%emt 0:01:52]} a6 {[%emt 0:01:28]} 35. a5 {[%emt 0:00:58]} Rd8 {[%emt 0:02:03]} 36. R1d2 {[%emt 0:00:15]} Rg8 {[%emt 0:02:08]} 37. Rf2 {[%emt 0:01:45]} f5+ {[%emt 0:05:03]} 38. Kf4 {[%emt 0:01:09]} Rg4+ {[%emt 0:00:44]} 39. Ke3 {[%emt 0:00:34]} Rxg3+ {[%emt 0:02:26]} 40. Kd2 {[%emt 0:00:09]} Rg4 {[%emt 0:01:57]} 41. Rh2 {[%emt 0:15:16]} Rdxd4 {[%emt 0:16:15]} 42. Rxd4 {[%emt 0:00:05]} Rxd4+ {[%emt 0:00:16]} 43. Kc3 {[%emt 0:00:03]} e5 {[%emt 0:01:12]} 44. Rf2 {[%emt 0:00:30]} Kf6 {[%emt 0:02:23]} 45. Rh2 {[%emt 0:00:20]} Ke6 {[%emt 0:00:53]} 46. Rg2 {[%emt 0:00:12]} f4 {[%emt 0:03:51]} 47. Rg7 {[%emt 0:00:14]} Rd7 {[%emt 0:00:27]} 48. Rg5 {[%emt 0:00:44]} f3 {[%emt 0:01:05]} 49. Rg6+ {[%emt 0:00:09]} Kf5 {[%emt 0:00:33]} 50. Rg8 {[%emt 0:00:05]} Ke4 {[%emt 0:00:29] Kd4+} 1/2-1/2

[Event "Faroes Open 2018"]
[Site "Sandavagur"]
[Date "2018.07.09"]
[Round "4"]
[White "Djurhuus, Arant"]
[Black "Fjallheim, Leif Reinert"]
[Result "1/2-1/2"]
[ECO "A45"]
[WhiteElo "1703"]
[BlackElo "1886"]
[Annotator "NA"]
[PlyCount "60"]
[EventDate "2018.07.07"]
[EventType "swiss"]
[EventCountry "FAI"]
[SourceTitle "playchess.com"]
[Source "ChessBase"]
[SourceQuality "1"]
[TimeControl "40/5400+30:900+30"]

1. d4 {[%emt 0:00:00]} Nf6 {[%emt 0:00:00]} 2. Bf4 {[%emt 0:00:00]} g6 {[%emt 0:00:57]} 3. Nc3 Bg7 {[%emt 0:01:43]} 4. e4 {[%emt 0:00:19]} d6 {[%emt 0:00:13]} 5. Qd2 {[%emt 0:00:34]} O-O {[%emt 0:03:43]} 6. O-O-O {[%emt 0:02:40]} c6 {[%emt 0:07:19]} 7. Bh6 {[%emt 0:08:22]} b5 {[%emt 0:03:22]} 8. f3 {[%emt 0:02:01]} a5 {[%emt 0:04:04]} 9. h4 {[%emt 0:01:46]} Qb6 {[%emt 0:16:05] B07: Pirc Defence: Miscellaneous Systems} (9... a4 10. h5 b4 11. Nb1 Qa5 12. Bxg7 Kxg7 13. hxg6 fxg6 14. Bc4 Ng8 15. Ne2 d5 16. Bd3 dxe4 17. Bxe4 {1-0 (54) Farkas,G (2190)-Elo,I (2075) Hungary 2013}) 10. h5 {[%emt 0:02:59]} e5 $146 {[%emt 0:05:09]} ({Predecessor:} 10... Nbd7 11. hxg6 fxg6 12. Bxg7 Kxg7 13. Qh6+ Kf7 14. Nh3 Ke8 15. Ng5 Rf7 16. Nxf7 Kxf7 {1-0 (78) Bozkurt,A (1447)-Isik,M (1453) Antalya 2018}) 11. hxg6 {[%emt 0:05:39]} fxg6 {[%emt 0:00:51]} 12. Bxg7 {[%emt 0:08:00]} Kxg7 {[%emt 0:01:09]} 13. dxe5 {[%emt 0:00:31]} dxe5 {[%emt 0:02:03]} 14. Qh6+ {[%emt 0:01:02]} Kg8 {[%emt 0:02:00]} 15. Rd6 {[%emt 0:06:31]} Qc7 {[%emt 0:01:17]} 16. Qd2 {[%emt 0:07:58]} Ba6 {[%emt 0:03:35]} 17. Nh3 {[%emt 0:06:11]} b4 {[%emt 0:06:46]} 18. Ne2 {[%emt 0:08:18]} Ra7 {[%emt 0:24:16]} 19. Ng5 {[%emt 0:04:11]} Qb6 {[%emt 0:03:33]} 20. Ne6 {[%emt 0:07:01]} Re8 {[%emt 0:05:31]} 21. Ng5 $11 {[%emt 0:12:01]} ({White should play} 21. Qg5 $16 Nbd7 22. Qd2) 21... Rd7 {[%emt 0:01:42]} 22. Nxh7 {[%emt 0:03:29]} Rxh7 {[%emt 0:03:09]} 23. Qg5 {[%emt 0:04:20]} Nbd7 {[%emt 0:02:27]} 24. Rxf6 {[%emt 0:02:14]} Nxf6 {[%emt 0:00:07]} 25. Qxf6 {[%emt 0:00:35]} Rxh1 {[%emt 0:00:51]} 26. Qxg6+ {[%emt 0:00:11]} Kf8 {[%emt 0:00:08]} 27. Qf6+ {[%emt 0:00:21]} Kg8 {[%emt 0:00:48]} 28. Qg6+ {[%emt 0:00:11]} Kf8 {[%emt 0:00:03]} 29. Qf6+ {[%emt 0:00:14]} Kg8 {[%emt 0:00:05]} 30. Qg6+ {[%emt 0:00:25]} Kf8 {[%emt 0:00:28]} 1/2-1/2

[Event "Faroes Open 2018"]
[Site "Sandavagur"]
[Date "2018.07.09"]
[Round "4"]
[White "Gregersen, Einar"]
[Black "Nielsen, Rógvi Egilstoft"]
[Result "0-1"]
[ECO "C60"]
[WhiteElo "1665"]
[BlackElo "2337"]
[Annotator "ChessBase"]
[PlyCount "98"]
[EventDate "2018.07.07"]
[EventType "swiss"]
[EventCountry "FAI"]
[SourceTitle "playchess.com"]
[Source "ChessBase"]
[SourceQuality "1"]
[TimeControl "40/5400+30:900+30"]

1. e4 {[%emt 0:00:00]} e5 {[%emt 0:00:00]} 2. Nf3 {[%emt 0:00:00]} Nc6 {[%emt 0:00:00]} 3. Bb5 {[%emt 0:00:00]} Nge7 {[%emt 0:00:19]} 4. O-O {[%emt 0:00:45]} g6 {[%emt 0:00:31]} 5. d3 {[%emt 0:02:39]} Bg7 {[%emt 0:00:54]} 6. c3 {[%emt 0:01:40]} O-O {[%emt 0:01:30]} 7. Re1 {[%emt 0:01:16]} h6 {[%emt 0:04:10]} 8. Nbd2 {[%emt 0:02:33]} Kh7 {[%emt 0:01:52]} 9. Nf1 {[%emt 0:02:23]} a6 {[%emt 0:00:11]} 10. Ba4 {[%emt 0:00:35]} b5 {[%emt 0:00:31]} 11. Bc2 {[%emt 0:00:15]} d5 {[%emt 0:00:19]} 12. d4 {[%emt 0:05:08]} exd4 {[%emt 0:02:42]} 13. cxd4 {[%emt 0:01:54]} dxe4 {[%emt 0:04:07]} 14. Bxe4 {[%emt 0:07:00]} Rb8 {[%emt 0:05:06]} 15. d5 {[%emt 0:04:00]} Nb4 {[%emt 0:04:53]} 16. d6 {[%emt 0:11:14]} cxd6 {[%emt 0:00:16]} 17. Bf4 {[%emt 0:01:34]} Rb6 {[%emt 0:02:46]} 18. Be3 {[%emt 0:00:23]} d5 {[%emt 0:02:19]} 19. Bxb6 {[%emt 0:02:56]} Qxb6 {[%emt 0:00:07]} 20. Bc2 {[%emt 0:01:21]} Bxb2 {[%emt 0:07:00]} 21. Rb1 {[%emt 0:07:01]} Nxc2 {[%emt 0:01:57]} 22. Rxe7 {[%emt 0:03:33]} Bf6 {[%emt 0:02:56]} 23. Re2 {[%emt 0:01:04]} Na3 {[%emt 0:06:09]} 24. Rb3 {[%emt 0:03:42]} Qc5 {[%emt 0:00:19]} 25. Ne3 {[%emt 0:13:14]} d4 {[%emt 0:09:19]} 26. Nc2 {[%emt 0:01:55]} Nxc2 {[%emt 0:03:36]} 27. Rxc2 {[%emt 0:01:06]} Qd6 {[%emt 0:00:18]} 28. Rd2 {[%emt 0:01:13]} Be6 {[%emt 0:09:56]} 29. Re3 {[%emt 0:05:27]} Rc8 {[%emt 0:04:50]} 30. Nxd4 {[%emt 0:04:19]} Bxd4 {[%emt 0:00:53]} 31. Red3 {[%emt 0:01:35]} Bxa2 {[%emt 0:04:31]} 32. Rxd4 {[%emt 0:05:12]} Qe5 {[%emt 0:04:48]} 33. Rd8 {[%emt 0:02:57]} Rxd8 {[%emt 0:02:30]} 34. Rxd8 {[%emt 0:00:11]} b4 {[%emt 0:00:27]} 35. Rd7 {[%emt 0:04:17]} Be6 {[%emt 0:03:48]} 36. Rb7 {[%emt 0:00:56]} a5 {[%emt 0:00:27]} 37. h3 {[%emt 0:00:30]} b3 {[%emt 0:00:56]} 38. Rxb3 {[%emt 0:00:36]} Bxb3 {[%emt 0:00:10]} 39. Qxb3 {[%emt 0:00:05]} Qe1+ {[%emt 0:00:06]} 40. Kh2 {[%emt 0:00:06]} Qxf2 {[%emt 0:00:05]} 41. Qa3 {[%emt 0:16:57]} Qf4+ {[%emt 0:16:24]} 42. Kg1 {[%emt 0:00:14]} Qb4 {[%emt 0:00:17]} 43. Qa2 {[%emt 0:00:39]} Kg8 {[%emt 0:00:49]} 44. Qe2 {[%emt 0:00:21]} Qb1+ {[%emt 0:00:32]} 45. Kf2 {[%emt 0:01:05]} Qb3 {[%emt 0:01:11]} 46. Qd2 {[%emt 0:01:37]} a4 {[%emt 0:00:11]} 47. Qxh6 {[%emt 0:00:06]} a3 {[%emt 0:00:11]} 48. Qg5 {[%emt 0:00:20]} Qb2+ {[%emt 0:00:09]} 49. Kg1 {[%emt 0:00:13]} a2 {[%emt 0:00:06]} 0-1

[Event "Faroes Open 2018"]
[Site "Sandavagur"]
[Date "2018.07.09"]
[Round "4"]
[White "Petersen, Gutti"]
[Black "Petersen, Elias"]
[Result "1-0"]
[ECO "C64"]
[WhiteElo "1596"]
[BlackElo "1035"]
[Annotator "NA"]
[PlyCount "63"]
[EventDate "2018.07.07"]
[EventType "swiss"]
[EventCountry "FAI"]
[SourceTitle "playchess.com"]
[Source "ChessBase"]
[SourceQuality "1"]
[TimeControl "40/5400+30:900+30"]

1. e4 {[%emt 0:00:00]} e5 {[%emt 0:00:00]} 2. Nf3 {[%emt 0:00:00]} Nc6 {[%emt 0:00:05]} 3. Bb5 {[%emt 0:00:24]} Bc5 {[%emt 0:01:33]} 4. c3 {[%emt 0:01:03]} d6 {[%emt 0:02:31]} 5. h3 {[%emt 0:00:32]} Nf6 {[%emt 0:00:17]} 6. d3 {[%emt 0:00:22]} Bd7 {[%emt 0:02:41]} 7. Ba4 {[%emt 0:01:50]} O-O {[%emt 0:00:57]} 8. O-O {[%emt 0:00:11]} h6 {[%emt 0:00:47]} 9. Bc2 {[%emt 0:01:21]} Ne7 {[%emt 0:00:51]} 10. d4 {[%emt 0:00:14]} exd4 {[%emt 0:00:19]} 11. cxd4 {[%emt 0:00:01]} Bb6 {[%emt 0:00:24]} 12. Nc3 {[%emt 0:00:39]} c6 {[%emt 0:00:50]} 13. Qd3 {[%emt 0:03:25]} Re8 {[%emt 0:01:55]} 14. e5 {[%emt 0:00:47]} Bf5 {[%emt 0:00:47]} 15. Qd2 {[%emt 0:00:21]} Bxc2 {[%emt 0:00:39]} 16. exf6 {[%emt 0:00:10]} Bf5 {[%emt 0:08:54]} 17. fxe7 {[%emt 0:01:46]} Rxe7 {[%emt 0:00:23]} 18. Qf4 {[%emt 0:02:13]} Be6 {[%emt 0:01:07]} 19. Bd2 {[%emt 0:00:39]} d5 {[%emt 0:01:10]} 20. Rfe1 {[%emt 0:03:17]} f6 {[%emt 0:02:24]} 21. Qe3 {[%emt 0:03:43]} Bc7 {[%emt 0:02:52]} 22. Qd3 {[%emt 0:02:50]} Qd7 {[%emt 0:03:48]} 23. Qg6 {[%emt 0:06:11]} Rae8 {[%emt 0:03:47]} 24. Qh5 {[%emt 0:03:16]} b6 {[%emt 0:03:43]} 25. Re2 {[%emt 0:00:29]} c5 {[%emt 0:00:29]} 26. Rae1 {[%emt 0:00:06]} Kh7 {[%emt 0:02:42]} 27. Be3 {[%emt 0:08:44]} Qd6 {[%emt 0:03:53]} 28. Nb5 {[%emt 0:01:08]} Qd7 {[%emt 0:01:34]} 29. Nxc7 {[%emt 0:00:51]} Qxc7 {[%emt 0:00:20]} 30. Nh4 {[%emt 0:00:52]} Bf7 {[%emt 0:00:59]} 31. Qf5+ {[%emt 0:00:28]} Kg8 {[%emt 0:00:47]} 32. Qd3 {[%emt 0:02:55]} 1-0

[Event "Faroes Open 2018"]
[Site "Sandavagur"]
[Date "2018.07.09"]
[Round "4"]
[White "Fjallheim, Benjamin Reinert"]
[Black "Nielsen, Suni í Horni"]
[Result "0-1"]
[ECO "C55"]
[WhiteElo "1375"]
[BlackElo "1487"]
[Annotator "NA"]
[PlyCount "116"]
[EventDate "2018.07.07"]
[EventType "swiss"]
[EventCountry "FAI"]
[SourceTitle "playchess.com"]
[Source "ChessBase"]
[SourceQuality "1"]
[TimeControl "40/5400+30:900+30"]

1. e4 {[%emt 0:00:00]} e5 {[%emt 0:00:00]} 2. Nf3 {[%emt 0:00:02]} Nc6 {[%emt 0:01:04]} 3. Bc4 {[%emt 0:01:00]} Nf6 {[%emt 0:02:27]} 4. d3 {[%emt 0:00:49]} h6 {[%emt 0:02:43]} 5. Nc3 {[%emt 0:05:31]} Bc5 {[%emt 0:01:33]} 6. Be3 {[%emt 0:02:04]} Bb6 {[%emt 0:01:13]} 7. O-O {[%emt 0:01:18]} d6 {[%emt 0:03:03]} 8. h3 {[%emt 0:05:29]} O-O {[%emt 0:03:38]} 9. Qe2 {[%emt 0:06:52]} Be6 {[%emt 0:04:38]} 10. Bb3 {[%emt 0:02:03]} Ne7 {[%emt 0:09:31]} 11. Rad1 {[%emt 0:06:41]} Ng6 {[%emt 0:03:56]} 12. Rfe1 {[%emt 0:04:59]} Qe7 {[%emt 0:02:38]} 13. d4 {[%emt 0:03:50]} exd4 {[%emt 0:01:01]} 14. Bxd4 {[%emt 0:01:15]} Bxb3 {[%emt 0:00:50]} 15. axb3 {[%emt 0:06:33]} Bxd4 {[%emt 0:06:30]} 16. Nxd4 {[%emt 0:03:49]} Rfe8 {[%emt 0:01:22]} 17. Nd5 {[%emt 0:05:22]} Nxd5 {[%emt 0:00:12]} 18. exd5 {[%emt 0:00:11]} Qxe2 {[%emt 0:03:19]} 19. Nxe2 {[%emt 0:02:48]} Re7 {[%emt 0:01:35]} 20. g3 {[%emt 0:02:24]} Rae8 {[%emt 0:01:06]} 21. Kf1 {[%emt 0:00:27]} a6 {[%emt 0:09:51]} 22. Nd4 {[%emt 0:01:36]} Rxe1+ {[%emt 0:03:33]} 23. Rxe1 {[%emt 0:01:53]} Rxe1+ {[%emt 0:00:10]} 24. Kxe1 {[%emt 0:00:15]} Ne7 {[%emt 0:02:10]} 25. c4 {[%emt 0:00:15]} g6 {[%emt 0:01:15]} 26. Ke2 {[%emt 0:01:35]} Kg7 {[%emt 0:00:11]} 27. Ke3 {[%emt 0:01:11]} Kf6 {[%emt 0:04:31]} 28. Kf4 {[%emt 0:04:01]} g5+ {[%emt 0:04:25]} 29. Ke4 {[%emt 0:01:43]} h5 {[%emt 0:03:53]} 30. b4 {[%emt 0:01:16]} c6 {[%emt 0:12:42]} 31. dxc6 {[%emt 0:01:35]} Nxc6 {[%emt 0:00:49]} 32. Nxc6 {[%emt 0:01:43]} bxc6 {[%emt 0:00:07]} 33. g4 {[%emt 0:01:13]} hxg4 {[%emt 0:01:15]} 34. hxg4 {[%emt 0:00:09]} Ke6 {[%emt 0:00:29]} 35. Kd4 {[%emt 0:00:35]} d5 {[%emt 0:01:08]} 36. b3 {[%emt 0:01:50]} f6 {[%emt 0:00:18]} 37. c5 {[%emt 0:01:02]} f5 {[%emt 0:01:01]} 38. gxf5+ {[%emt 0:01:02]} Kxf5 {[%emt 0:00:07]} 39. Kd3 {[%emt 0:01:44]} Kf4 {[%emt 0:00:52]} 40. Kd4 {[%emt 0:00:46]} Kf3 {[%emt 0:00:27]} 41. Ke5 {[%emt 0:15:18]} Kxf2 {[%emt 0:15:37]} 42. Kd6 {[%emt 0:00:11]} d4 {[%emt 0:00:07]} 43. Kxc6 {[%emt 0:00:07]} d3 {[%emt 0:00:01]} 44. Kb7 {[%emt 0:00:32]} d2 {[%emt 0:00:08]} 45. c6 {[%emt 0:00:05]} d1=Q {[%emt 0:00:13]} 46. c7 {[%emt 0:00:07]} Qd7 {[%emt 0:00:03]} 47. Kb8 {[%emt 0:00:34]} g4 {[%emt 0:00:59]} 48. c8=Q {[%emt 0:00:13]} Qxc8+ {[%emt 0:00:02]} 49. Kxc8 {[%emt 0:00:17]} g3 {[%emt 0:00:05]} 50. Kb7 {[%emt 0:00:12]} g2 {[%emt 0:00:02]} 51. Kxa6 {[%emt 0:00:10]} g1=Q {[%emt 0:00:12]} 52. b5 {[%emt 0:00:02]} Qa1+ {[%emt 0:01:10]} 53. Kb7 {[%emt 0:00:10]} Qg7+ {[%emt 0:00:55]} 54. Ka6 {[%emt 0:00:21]} Qc7 {[%emt 0:00:23]} 55. b6 {[%emt 0:00:55]} Qb8 {[%emt 0:00:09]} 56. b4 {[%emt 0:00:04]} Ke3 {[%emt 0:00:11]} 57. b7 {[%emt 0:00:02]} Kd4 {[%emt 0:00:28]} 58. b5 {[%emt 0:00:05]} Kc5 {[%emt 0:00:16]} 0-1

[Event "Faroes Open 2018"]
[Site "Sandavagur"]
[Date "2018.07.09"]
[Round "4"]
[White "Tummasarson, Flóvin Matras"]
[Black "Joensen, Hans Petur"]
[Result "1/2-1/2"]
[ECO "B01"]
[WhiteElo "1237"]
[BlackElo "1627"]
[Annotator "NA"]
[PlyCount "66"]
[EventDate "2018.07.07"]
[EventType "swiss"]
[EventCountry "FAI"]
[SourceTitle "playchess.com"]
[Source "ChessBase"]
[SourceQuality "1"]
[TimeControl "40/5400+30:900+30"]

1. e4 {[%emt 0:00:00]} d5 {[%emt 0:00:00]} 2. exd5 {[%emt 0:00:00]} Qxd5 {[%emt 0:00:00]} 3. Nc3 {[%emt 0:00:03]} Qd6 {[%emt 0:00:19]} 4. d4 {[%emt 0:00:33]} c6 {[%emt 0:00:14]} 5. Bc4 {[%emt 0:00:40]} Nf6 {[%emt 0:00:43]} 6. Nge2 {[%emt 0:01:49]} Bg4 {[%emt 0:01:23]} 7. f3 {[%emt 0:00:35]} Bh5 {[%emt 0:00:51]} 8. Bf4 {[%emt 0:01:57]} Qd8 {[%emt 0:00:18]} 9. O-O {[%emt 0:02:34]} e6 {[%emt 0:00:27]} 10. Ng3 {[%emt 0:01:41]} Bd6 {[%emt 0:05:49]} 11. Bxd6 {[%emt 0:01:44]} Qxd6 {[%emt 0:00:20]} 12. Nxh5 {[%emt 0:01:23]} Nxh5 {[%emt 0:00:44]} 13. Ne4 {[%emt 0:02:25]} Qc7 {[%emt 0:02:01]} 14. Re1 {[%emt 0:03:01]} O-O {[%emt 0:02:27]} 15. c3 {[%emt 0:03:18]} Nd7 {[%emt 0:01:13]} 16. Qc2 {[%emt 0:03:47]} Rad8 {[%emt 0:01:09]} 17. Ng5 {[%emt 0:02:54]} Ndf6 {[%emt 0:14:17]} 18. Bxe6 {[%emt 0:03:57]} h6 {[%emt 0:00:20]} 19. Nxf7 {[%emt 0:11:14]} Rxf7 {[%emt 0:00:33]} 20. Bxf7+ Kxf7 {[%emt 0:02:22]} 21. Qf5 {[%emt 0:02:55]} Nf4 {[%emt 0:06:55]} 22. Qe5 {[%emt 0:12:06]} Qxe5 {[%emt 0:03:42]} 23. Rxe5 {[%emt 0:03:37]} Re8 {[%emt 0:07:57]} 24. Rxe8 {[%emt 0:05:13]} Nxe8 {[%emt 0:02:35]} 25. Rd1 {[%emt 0:02:20]} Nd6 {[%emt 0:00:35]} 26. a4 {[%emt 0:01:48]} Nc4 {[%emt 0:08:38]} 27. b3 {[%emt 0:05:49]} Ne3 {[%emt 0:02:03]} 28. Rd2 {[%emt 0:03:16]} Kf6 {[%emt 0:09:26]} 29. c4 {[%emt 0:04:47]} g5 {[%emt 0:01:47]} 30. g4 {[%emt 0:04:01]} Nh3+ {[%emt 0:09:29]} 31. Kh1 {[%emt 0:01:13]} Nf4 {[%emt 0:01:51]} 32. Kg1 {[%emt 0:04:29]} Nh3+ {[%emt 0:01:38]} 33. Kh1 Nf4 1/2-1/2

[Event "Faroes Open 2018"]
[Site "Sandavagur"]
[Date "2018.07.10"]
[Round "5"]
[White "Vavulin, Maksim"]
[Black "Nakar, Eylon"]
[Result "0-1"]
[ECO "C07"]
[WhiteElo "2552"]
[BlackElo "2462"]
[Annotator "ChessBase"]
[PlyCount "134"]
[EventDate "2018.07.07"]
[EventType "swiss"]
[EventCountry "FAI"]
[SourceTitle "playchess.com"]
[Source "ChessBase"]
[SourceQuality "1"]
[TimeControl "40/5400+30:900+30"]

1. e4 {[%emt 0:01:21]} e6 {[%emt 0:00:00]} 2. d4 {[%emt 0:03:44]} d5 {[%emt 0:00:00]} 3. Nd2 {[%emt 0:00:17]} c5 {[%emt 0:00:10]} 4. Ngf3 {[%emt 0:00:16]} cxd4 {[%emt 0:00:29]} 5. Nxd4 {[%emt 0:00:12]} Nc6 {[%emt 0:00:44]} 6. Bb5 {[%emt 0:00:15]} Bd7 {[%emt 0:00:15]} 7. Nxc6 {[%emt 0:00:11]} bxc6 {[%emt 0:00:23]} 8. Bd3 {[%emt 0:00:12]} Qc7 {[%emt 0:00:48]} 9. Qe2 {[%emt 0:04:52]} Ne7 {[%emt 0:00:39]} 10. Qh5 {[%emt 0:20:57]} Ng6 {[%emt 0:24:09]} 11. g3 {[%emt 0:00:30]} Be7 {[%emt 0:20:34]} 12. Nf3 {[%emt 0:05:49]} O-O {[%emt 0:01:58]} 13. O-O {[%emt 0:06:08]} Be8 {[%emt 0:28:33]} 14. exd5 {[%emt 0:12:36]} cxd5 {[%emt 0:00:06]} 15. c3 {[%emt 0:08:40]} Qb7 {[%emt 0:12:07]} 16. Re1 {[%emt 0:01:45]} Bb5 {[%emt 0:00:40]} 17. Bc2 {[%emt 0:01:36]} Qa6 {[%emt 0:00:23]} 18. Ne5 {[%emt 0:02:22]} Bf6 {[%emt 0:01:35]} 19. Ng4 {[%emt 0:16:30]} Be7 {[%emt 0:00:04]} 20. Ne5 {[%emt 0:00:24]} Bf6 {[%emt 0:00:02]} 21. Nxg6 {[%emt 0:03:25]} hxg6 {[%emt 0:00:07]} 22. Qd1 {[%emt 0:00:02]} Rfd8 {[%emt 0:02:10]} 23. Be3 {[%emt 0:00:08]} e5 {[%emt 0:00:18]} 24. Bc5 {[%emt 0:00:30]} Rac8 {[%emt 0:03:10]} 25. b4 {[%emt 0:01:37]} e4 {[%emt 0:02:05]} 26. a4 {[%emt 0:02:17]} Bd7 {[%emt 0:00:53]} 27. Re3 {[%emt 0:02:06]} Bf5 {[%emt 0:00:30]} 28. Rb1 {[%emt 0:01:53]} Qe6 {[%emt 0:00:11]} 29. Bd4 {[%emt 0:01:56]} Bxd4 {[%emt 0:00:20]} 30. Qxd4 {[%emt 0:00:08]} Rc4 {[%emt 0:00:50]} 31. Qd2 {[%emt 0:00:21]} d4 32. Bb3 Qc8 33. Rd1 Bg4 34. Bxc4 Bxd1 35. cxd4 Qxc4 36. Qxd1 Rxd4 37. Qg4 f5 38. Qe2 Qxe2 39. Rxe2 Rxb4 40. Ra2 a5 41. h4 Kh7 42. Kg2 Kh6 43. Rc2 Rxa4 44. Rc8 Kh7 45. Ra8 Ra2 46. Kf1 a4 47. Kg1 a3 48. Kf1 Ra1+ 49. Kg2 a2 50. Kh2 g5 51. hxg5 Kg6 52. Ra7 Kh5 53. Kg2 g6 54. Ra5 Kxg5 55. Ra6 Kh5 56. Ra5 g5 57. Kh2 Kg4 58. Kg2 f4 59. gxf4 gxf4 60. f3+ exf3+ 61. Kf2 Rh1 62. Ra8 Rh2+ 63. Kf1 Rb2 64. Ra4 Kh5 65. Kg1 f2+ 66. Kg2 f1=Q+ 67. Kxf1 Rb1+ 0-1

[Event "Faroes Open 2018"]
[Site "Sandavagur"]
[Date "2018.07.10"]
[Round "5"]
[White "Kunin, Vitaly"]
[Black "Ziska, Helgi Dam"]
[Result "1-0"]
[ECO "E73"]
[WhiteElo "2538"]
[BlackElo "2552"]
[Annotator "ChessBase"]
[PlyCount "117"]
[EventDate "2018.07.07"]
[EventType "swiss"]
[EventCountry "FAI"]
[SourceTitle "playchess.com"]
[Source "ChessBase"]
[SourceQuality "1"]
[TimeControl "40/5400+30:900+30"]

1. d4 {[%emt 0:00:00]} Nf6 {[%emt 0:00:00]} 2. c4 {[%emt 0:00:32]} g6 {[%emt 0:00:02]} 3. Nc3 {[%emt 0:00:15]} Bg7 {[%emt 0:00:29]} 4. e4 {[%emt 0:01:34]} d6 {[%emt 0:00:41]} 5. Be2 {[%emt 0:00:55]} O-O {[%emt 0:01:18]} 6. Bg5 {[%emt 0:00:31]} Na6 {[%emt 0:05:10]} 7. f4 {[%emt 0:01:30]} c6 {[%emt 0:03:52]} 8. Nf3 {[%emt 0:00:50]} Nc7 {[%emt 0:16:42]} 9. Qd2 {[%emt 0:00:49]} d5 {[%emt 0:04:18]} 10. Bxf6 {[%emt 0:00:24]} exf6 {[%emt 0:00:28]} 11. exd5 {[%emt 0:00:11]} cxd5 {[%emt 0:00:30]} 12. c5 {[%emt 0:00:30]} Bf5 {[%emt 0:20:05]} 13. O-O {[%emt 0:00:03]} Be4 {[%emt 0:02:00]} 14. Rae1 {[%emt 0:02:29]} Ne6 {[%emt 0:05:25]} 15. Bd1 {[%emt 0:04:59]} b6 {[%emt 0:09:12]} 16. b4 {[%emt 0:02:33]} a5 {[%emt 0:00:05]} 17. a3 {[%emt 0:02:33]} axb4 {[%emt 0:00:06]} 18. axb4 {[%emt 0:00:07]} f5 {[%emt 0:02:02]} 19. Ne5 {[%emt 0:01:27]} bxc5 {[%emt 0:00:26]} 20. dxc5 {[%emt 0:12:51]} Bxe5 {[%emt 0:01:23]} 21. fxe5 {[%emt 0:00:11]} Qb8 {[%emt 0:02:50]} 22. Kh1 {[%emt 0:12:22]} Qxe5 {[%emt 0:02:36]} 23. Bf3 {[%emt 0:05:24]} Rab8 {[%emt 0:02:15]} 24. Na4 {[%emt 0:05:42]} Qd4 {[%emt 0:08:12]} 25. Qxd4 {[%emt 0:01:05]} Nxd4 {[%emt 0:00:04]} 26. Nb6 {[%emt 0:00:14]} Nxf3 {[%emt 0:05:45]} 27. gxf3 {[%emt 0:00:12]} Bd3 {[%emt 0:00:10]} 28. Rf2 {[%emt 0:04:12]} Rxb6 {[%emt 0:00:16]} 29. cxb6 {[%emt 0:00:08]} Rb8 {[%emt 0:00:04]} 30. Re7 {[%emt 0:04:27]} Rxb6 {[%emt 0:02:23]} 31. Ra2 {[%emt 0:00:10]} Rxb4 {[%emt 0:02:18]} 32. Raa7 {[%emt 0:00:49]} Kg7 {[%emt 0:01:03]} 33. Rxf7+ {[%emt 0:01:23]} Kh6 {[%emt 0:00:04]} 34. Rxh7+ {[%emt 0:00:43]} Kg5 {[%emt 0:00:04]} 35. Ra2 {[%emt 0:00:22]} Rb1+ {[%emt 0:00:53]} 36. Kg2 {[%emt 0:00:09]} Bc4 {[%emt 0:00:32]} 37. Rd2 {[%emt 0:00:33]} Re1 {[%emt 0:02:53]} 38. Kg3 {[%emt 0:10:29]} Kf6 {[%emt 0:01:19]} 39. h4 {[%emt 0:00:39]} Rb1 {[%emt 0:00:45]} 40. Rc7 {[%emt 0:02:19]} Rb6 {[%emt 0:00:36]} 41. Kf4 {[%emt 0:15:59]} Bb3 {[%emt 0:05:12]} 42. Rb2 {[%emt 0:00:00]} Rb4+ {[%emt 0:00:07]} 43. Ke3 f4+ 44. Kd2 Rc4 45. Ra7 Ba4 46. Ra6+ Kf5 47. Kd3 Bd7 48. Rd6 Rc7 49. Rxd5+ Kf6 50. Rb6+ Kg7 51. Rd4 Bf5+ 52. Kd2 Rc2+ 53. Kd1 Rh2 54. Rxf4 Kh7 55. Ke1 Bd3 56. Rd6 Bf5 57. Rd2 Rh1+ 58. Kf2 Rb1 59. h5 1-0